bitfinex-derivatives/quotes_SOLF0:USTF0_20241211
["timestamp","ask_amount","ask_price","bid_price","bid_amount"]
[1733948055493,4.2337,229.76,229.75,20.15565528]
[1733948057788,4.2337,229.76,229.75,15.39858092]
[1733948058693,4.2337,229.76,229.75,15.40028612]
[1733948062001,4.2337,229.76,229.75,9.9633619]
[1733948062200,4.2337,229.76,229.75,20.16666376]
[1733948065498,4.2337,229.76,229.75,7.74065344]
[1733948065702,4.2337,229.76,229.75,14.73842477]
[1733948065903,4.2337,229.76,229.75,20.17595334]
[1733948067103,4.2337,229.76,229.75,15.41017658]
[1733948067799,4.2337,229.76,229.75,15.41415484]
[1733948067997,4.2337,229.76,229.75,20.18017141]
[1733948068302,4.2337,229.76,229.75,15.41415484]
[1733948068701,4.2337,229.76,229.75,20.17978529]
[1733948069002,4.2337,229.76,229.75,14.74225672]
[1733948069201,4.2337,229.76,229.75,15.41415385]
[1733948069401,4.2337,229.76,229.75,20.1799893]
[1733948069598,4.2337,229.76,229.75,20.17968863]
[1733948071497,2.1737,229.76,229.75,20.17968863]
[1733948071704,4.2337,229.76,229.75,20.17968863]
[1733948072209,4.2337,229.76,229.66,8.26890233]
[1733948072210,2.06,229.76,229.68,2.1745]
[1733948072401,2.1742,229.71,229.69,7.74507832]
[1733948072709,6.39770233,229.73,229.7,14.74312819]
[1733948072900,6.39770233,229.73,229.71,14.74312819]
[1733948073101,6.39770233,229.73,229.72,20.18035715]
[1733948073907,8.57170233,229.73,229.72,20.18035715]
[1733948075704,8.57170233,229.73,229.72,11.76565769]
[1733948075905,8.57170233,229.73,229.72,20.18270973]
[1733948078615,2.174,229.73,229.72,20.18270973]
[1733948078910,8.57170233,229.73,229.72,12.43534703]
[1733948079102,8.57170233,229.73,229.72,20.18446425]
[1733948082308,8.57170233,229.73,229.72,15.85863619]
[1733948082508,8.57170233,229.73,229.72,20.12909813]
[1733948083118,5.09411483,229.8,229.72,20.12909813]
[1733948083319,6.39770233,229.78,229.73,20.12909813]
[1733948083516,6.39770233,229.78,229.74,20.12909813]
[1733948083708,2.1737,229.76,229.75,20.12909813]
[1733948084812,8.57140233,229.76,229.75,20.12909813]
[1733948088619,6.39770233,229.76,229.67,6.39770233]
[1733948088812,8.57140233,229.76,229.75,8.10687732]
[1733948089018,8.57140233,229.76,229.75,20.13281589]
[1733948092120,8.57140233,229.76,229.75,20.13376491]
[1733948096621,2.1745,229.68,229.66,1.8712]
[1733948096826,2.06,229.69,229.66,1.8712]
[1733948097426,4.2345,229.69,229.66,1.8712]
[1733948097929,2.06,229.69,229.66,4.0458]
[1733948098122,2.06,229.71,229.66,8.26890233]
[1733948098428,6.39770233,229.72,229.69,2.1744]
[1733948098429,10.63190233,229.72,229.69,2.1744]
[1733948098627,8.45770233,229.72,229.69,2.1744]
[1733948099529,10.63190233,229.72,229.68,2.1745]
[1733948099727,8.45770233,229.72,229.68,2.1745]
[1733948100730,2.1742,229.71,229.68,2.1745]
[1733948102423,8.45770233,229.72,229.66,8.26890233]
[1733948103130,8.45770233,229.72,229.66,1.8712]
[1733948103435,6.39770233,229.7,229.66,1.8712]
[1733948104236,425.78946102,229.9,229.69,6.39770233]
[1733948104434,2.06,229.88,229.77,6.39770233]
[1733948104738,2.06,229.88,229.81,6.39770233]
[1733948104739,6.39770233,229.88,229.81,6.39770233]
[1733948105029,8.57040233,229.88,229.83,2.173]
[1733948105231,6.39770233,229.86,229.78,5.5691]
[1733948105428,2.06,229.85,229.78,5.5691]
[1733948105627,6.39770233,229.84,229.78,5.5691]
[1733948106332,2.06,229.83,229.78,5.5691]
[1733948106538,4.2331,229.83,229.78,7.7426]
[1733948106939,4.2331,229.83,229.78,5.5691]
[1733948106940,2.06,229.83,229.78,5.5691]
[1733948107639,2.06,229.83,229.79,6.39770233]
[1733948108533,2.06,229.83,229.8,10.81150266]
[1733948108731,2.06,229.83,229.81,10.81150266]
[1733948108929,2.06,229.83,229.82,10.81150266]
[1733948109132,2.06,229.83,229.82,8.00195061]
[1733948109338,2.1733,229.81,229.75,2.1738]
[1733948109638,2.1733,229.81,229.76,10.81478468]
[1733948109832,2.1733,229.81,229.77,10.81478468]
[1733948110037,2.1733,229.81,229.78,10.81478468]
[1733948110335,2.1734,229.8,229.79,10.81478468]
[1733948110531,5.28103652,229.9,229.79,10.81478468]
[1733948110737,6.39770233,229.88,229.83,2.173]
[1733948110938,10.63030233,229.88,229.84,10.81478468]
[1733948111137,10.63030233,229.88,229.85,10.81478468]
[1733948111338,10.63030233,229.88,229.86,8.00292626]
[1733948111538,10.63030233,229.88,229.87,8.00292626]
[1733948112344,10.63030233,229.88,229.84,2.173]
[1733948112538,5.28103652,229.9,229.87,2.56168182]
[1733948112539,6.39770233,229.9,229.87,2.56168182]
[1733948112738,6.39770233,229.92,229.88,7.99602589]
[1733948112943,6.39770233,229.9,229.89,7.99602589]
[1733948113138,2.1727,229.88,229.82,6.39770233]
[1733948113338,2.1727,229.88,229.83,10.79845771]
[1733948113545,2.1727,229.88,229.84,10.79845771]
[1733948113745,2.06,229.87,229.85,10.79845771]
[1733948113937,2.06,229.87,229.86,10.79845771]
[1733948114244,2.06,229.87,229.86,7.99373897]
[1733948117754,6.39770233,229.9,229.86,7.99373897]
[1733948117944,2.06,229.91,229.87,7.99373897]
[1733948118251,2.06,229.91,229.88,7.98902234]
[1733948118445,2.06,229.91,229.88,2.1726]
[1733948118647,2.06,229.91,229.89,5.43369238]
[1733948118848,2.06,229.91,229.88,2.1726]
[1733948119044,2.06,229.91,229.89,2.5551845]
[1733948119352,2.06,229.91,229.88,2.1726]
[1733948119648,2.06,229.91,229.89,2.55428325]
[1733948119853,2.06,229.91,229.89,2.1725]
[1733948120646,2.06,229.91,229.9,2.1724]
[1733948121343,10.62970233,229.94,229.9,2.1724]
[1733948121543,8.45770233,229.94,229.9,2.1724]
[1733948122252,10.62980233,229.94,229.89,2.1725]
[1733948122648,10.62980233,229.94,229.9,7.98003859]
[1733948122946,10.62980233,229.94,229.89,2.1725]
[1733948123153,10.62980233,229.94,229.9,7.98172446]
[1733948123347,10.62980233,229.94,229.89,2.1725]
[1733948124253,6.39770233,229.92,229.85,6.39770233]
[1733948124450,6.39770233,229.92,229.86,7.97845397]
[1733948124650,6.39770233,229.92,229.85,6.39770233]
[1733948124953,8.57000233,229.92,229.89,2.1725]
[1733948125254,6.39770233,229.92,229.89,2.1725]
[1733948126252,6.39770233,229.9,229.87,2.1727]
[1733948126457,2.06,229.94,229.83,6.39770233]
[1733948126656,6.39770233,229.91,229.84,7.97934767]
[1733948126955,6.39770233,229.91,229.85,7.97934767]
[1733948127155,6.39770233,229.91,229.83,6.39770233]
[1733948127456,6.39770233,229.91,229.84,7.97966158]
[1733948127657,2.1725,229.9,229.86,2.1728]
[1733948127854,2.1725,229.9,229.83,6.39770233]
[1733948128056,2.1725,229.9,229.84,5.4279119]
[1733948128254,2.1725,229.9,229.83,6.39770233]
[1733948128255,2.1725,229.9,229.87,2.1727]
[1733948130255,5.34166567,229.95,229.81,8.45770233]
[1733948130256,8.45770233,229.89,229.81,8.45770233]
[1733948130456,6.39770233,229.87,229.82,10.77523664]
[1733948130658,6.39770233,229.87,229.83,7.97968277]
[1733948130855,6.39770233,229.87,229.84,7.97968277]
[1733948131056,6.39770233,229.87,229.85,2.55137537]
[1733948131359,8.45770233,229.89,229.81,6.39770233]
[1733948131560,8.45770233,229.89,229.82,10.77612703]
[1733948131853,8.45770233,229.89,229.83,7.98034625]
[1733948132052,8.45770233,229.89,229.84,2.551604]
[1733948132258,8.45770233,229.89,229.85,2.551604]
[1733948132460,8.45770233,229.89,229.85,5.42874984]
[1733948132658,2.1727,229.87,229.84,2.1729]
[1733948132961,2.1727,229.87,229.85,7.98115364]
[1733948133257,6.39770233,229.87,229.8,5.4226]
[1733948133459,6.39770233,229.82,229.81,7.98309004]
[1733948133859,8.57090233,229.82,229.77,2.1736]
[1733948134053,8.57090233,229.82,229.78,7.98788396]
[1733948134259,8.57090233,229.82,229.79,7.98788396]
[1733948134563,6.39770233,229.82,229.78,2.1735]
[1733948134754,2.1733,229.81,229.78,2.1735]
[1733948134959,2.06,229.8,229.78,2.1735]
[1733948135160,8.45770233,229.8,229.69,5.7805]
[1733948135355,8.45770233,229.8,229.75,2.1738]
[1733948135356,2.1734,229.79,229.75,2.1738]
[1733948135663,6.39770233,229.78,229.76,7.99224189]
[1733948135959,8.57130233,229.78,229.73,2.1739]
[1733948136162,8.57130233,229.78,229.74,10.79417454]
[1733948136353,8.57130233,229.78,229.73,2.1739]
[1733948136354,8.57130233,229.78,229.75,7.99298873]
[1733948136557,8.57130233,229.78,229.76,7.99298873]
[1733948136858,6.39770233,229.77,229.73,2.1739]
[1733948137054,6.39770233,229.77,229.74,10.79480946]
[1733948137259,6.39770233,229.77,229.75,7.99330692]
[1733948137461,8.57130233,229.77,229.76,5.43649152]
[1733948137658,6.39770233,229.77,229.69,5.7805]
[1733948137854,6.39770233,229.74,229.7,10.79731721]
[1733948138055,2.06,229.73,229.71,10.79731721]
[1733948138263,2.06,229.73,229.72,7.99488424]
[1733948138663,2.06,229.73,229.72,5.43728788]
[1733948138867,2.06,229.73,229.72,7.99524253]
[1733948140567,4.234,229.73,229.72,7.99524253]
[1733948140968,2.06,229.73,229.72,7.99524253]
[1733948141965,2.06,229.73,229.72,7.99548383]
[1733948142161,2.06,229.73,229.72,10.16958383]
[1733948142965,2.06,229.73,229.72,7.99548383]
[1733948144961,10.63170233,229.73,229.72,7.99548383]
[1733948145867,10.63170233,229.73,229.65,8.32890233]
[1733948146066,2.1741,229.72,229.67,2.1746]
[1733948146262,2.1741,229.72,229.68,10.79997447]
[1733948146569,8.45770233,229.73,229.69,10.79997447]
[1733948146761,8.45770233,229.73,229.7,7.99633836]
[1733948146961,2.1741,229.72,229.71,7.99633836]
[1733948147161,2.06,229.73,229.62,1.839]
[1733948147363,2.06,229.73,229.63,10.80343969]
[1733948147364,6.39770233,229.68,229.63,10.80343969]
[1733948147559,2.06,229.67,229.64,10.80343969]
[1733948147867,2.06,229.67,229.65,7.99859085]
[1733948148064,2.06,229.67,229.66,7.99859085]
[1733948148464,2.06,229.67,229.66,2.55954515]
[1733948148661,2.06,229.67,229.65,2.1747]
[1733948148861,2.06,229.67,229.66,2.55956731]
[1733948149067,2.06,229.67,229.66,7.99842494]
[1733948149266,2.06,229.67,229.65,2.1747]
[1733948149964,6.39770233,229.68,229.65,2.1747]
[1733948149965,6.39770233,229.71,229.65,6.39770233]
[1733948150170,6.39770233,229.71,229.66,10.7992352]
[1733948150171,2.06,229.71,229.66,10.7992352]
[1733948150364,2.06,229.71,229.67,10.7992352]
[1733948150570,2.06,229.71,229.69,2.1744]
[1733948150964,2.06,229.71,229.59,1.9791]
[1733948150965,2.06,229.71,229.7,2.55688422]
[1733948151170,2.06,229.71,229.67,6.39770233]
[1733948151369,42.9441918,229.79,229.72,2.1741]
[1733948151370,2.06,229.75,229.72,2.1741]
[1733948152274,2.1739,229.74,229.71,2.1742]
[1733948152769,8.45770233,229.75,229.69,1.8792]
[1733948153067,6.39770233,229.73,229.7,7.99082133]
[1733948153271,6.39770233,229.73,229.71,7.99082133]
[1733948153469,2.1742,229.71,229.67,2.1746]
[1733948153669,2.1742,229.71,229.68,10.78947117]
[1733948153870,2.1742,229.71,229.69,10.78947117]
[1733948154069,2.1742,229.71,229.7,7.98993462]
[1733948154772,2.1742,229.71,229.7,2.55513858]
[1733948155172,2.1743,229.7,229.66,2.1747]
[1733948155375,2.1743,229.7,229.67,7.99170831]
[1733948155574,2.06,229.69,229.66,2.1747]
[1733948155767,2.06,229.69,229.67,7.99193323]
[1733948155972,2.1745,229.68,229.59,1.8792]
[1733948156177,2.1745,229.68,229.6,17.18982008]
[1733948156375,2.1745,229.68,229.61,10.79211775]
[1733948156570,2.1745,229.68,229.64,2.1748]
[1733948156873,2.1745,229.68,229.65,2.55568995]
[1733948157074,2.1746,229.67,229.64,2.1748]
[1733948157566,8.57230233,229.67,229.63,2.1749]
[1733948157772,8.57230233,229.67,229.64,2.55577014]
[1733948157972,8.57230233,229.67,229.63,2.1749]
[1733948158172,8.57230233,229.67,229.64,2.55522172]
[1733948158476,8.57230233,229.67,229.63,2.1749]
[1733948158675,6.39770233,229.67,229.64,2.55460373]
[1733948158874,6.39770233,229.67,229.62,2.175]
[1733948159172,6.39770233,229.67,229.59,10.14710233]
[1733948159377,6.39770233,229.67,229.6,10.78546649]
[1733948159577,6.39770233,229.67,229.61,7.98676929]
[1733948159873,6.39770233,229.67,229.62,7.98676929]
[1733948160174,8.57240233,229.67,229.63,2.1749]
[1733948160475,8.57240233,229.67,229.61,6.39770233]
[1733948160671,8.57240233,229.67,229.64,2.1748]
[1733948160869,47.2912918,229.79,229.61,6.39770233]
[1733948161071,6.39770233,229.72,229.63,6.39770233]
[1733948161276,2.06,229.71,229.63,6.39770233]
[1733948161474,2.06,229.71,229.64,7.9852275]
[1733948161776,2.06,229.71,229.63,8.30240233]
[1733948161974,2.06,229.71,229.64,7.98434864]
[1733948162176,2.06,229.71,229.63,8.30240233]
[1733948162367,2.06,229.71,229.69,2.1744]
[1733948162982,2.06,229.71,229.68,2.1745]
[1733948167882,6.39770233,229.7,229.63,1.9047]
[1733948168180,2.06,229.71,229.64,7.98870893]
[1733948168372,6.39770233,229.65,229.54,1.9886]
[1733948168579,6.39770233,229.61,229.55,5.3596651]
[1733948168773,2.06,229.6,229.56,5.3596651]
[1733948168977,2.06,229.6,229.57,10.17197099]
[1733948169279,6.39770233,229.59,229.58,7.99647099]
[1733948169678,8.57300233,229.59,229.58,2.55758554]
[1733948169879,6.39770233,229.59,229.58,2.55758554]
[1733948170179,6.39770233,229.59,229.5,15.38573793]
[1733948170385,2.1755,229.58,229.51,10.80600875]
[1733948170579,6.39770233,229.59,229.52,17.20371108]
[1733948170776,6.39770233,229.59,229.55,2.1756]
[1733948170983,6.39770233,229.59,229.56,8.00115908]
[1733948171180,6.39770233,229.59,229.55,2.1756]
[1733948171181,6.39770233,229.59,229.57,8.00115908]
[1733948171381,2.1756,229.58,229.54,2.1758]
[1733948171690,6.39770233,229.59,229.55,8.00206138]
[1733948171886,6.39770233,229.59,229.56,8.00206138]
[1733948172077,6.39770233,229.59,229.57,2.5608286]
[1733948172281,6.39770233,229.59,229.54,2.1758]
[1733948172481,6.39770233,229.59,229.55,12.98330663]
[1733948172676,6.39770233,229.59,229.56,8.00189629]
[1733948172881,6.39770233,229.59,229.57,8.00189629]
[1733948173185,6.39770233,229.59,229.58,2.56262448]
[1733948173186,8.57320233,229.59,229.58,2.56262448]
[1733948173589,2.1756,229.57,229.5,3.8674]
[1733948173784,8.57330233,229.57,229.51,10.80977704]
[1733948173982,8.57330233,229.57,229.52,10.80977704]
[1733948174178,8.57330233,229.57,229.53,10.80977704]
[1733948174383,8.57330233,229.57,229.54,10.80977704]
[1733948174579,8.57330233,229.57,229.55,10.80977704]
[1733948174780,2.1756,229.57,229.56,8.0029193]
[1733948175077,8.57320233,229.58,229.56,8.0029193]
[1733948175387,8.57320233,229.58,229.57,8.0029193]
[1733948176576,8.57320233,229.58,229.57,2.56359159]
[1733948176778,8.57320233,229.58,229.57,5.44108787]
[1733948176984,8.57320233,229.58,229.57,2.56380753]
[1733948177284,8.57320233,229.58,229.57,8.00488773]
[1733948178479,6.39770233,229.52,229.45,2.06]
[1733948178684,6.39770233,229.52,229.46,2.81227602]
[1733948178980,6.39770233,229.5,229.47,2.81227602]
[1733948179179,6.39770233,229.5,229.44,3.9246]
[1733948179180,6.39770233,229.5,229.48,2.81227602]
[1733948179386,6.39770233,229.5,229.49,2.81227602]
[1733948179590,8.57390233,229.5,229.49,2.81227602]
[1733948180290,8.57390233,229.5,229.46,2.1766]
[1733948180491,8.57390233,229.5,229.47,2.81253674]
[1733948180685,8.57390233,229.5,229.48,2.81253674]
[1733948180888,8.57390233,229.5,229.46,2.1766]
[1733948181084,8.57410233,229.48,229.47,2.81278075]
[1733948181289,8.57410233,229.48,229.42,1.9655]
[1733948181290,2.06,229.48,229.42,1.9655]
[1733948181486,6.39770233,229.46,229.43,2.811862]
[1733948181789,6.39770233,229.46,229.44,2.811862]
[1733948181989,6.39770233,229.46,229.45,2.811862]
[1733948182589,8.45770233,229.48,229.45,2.811862]
[1733948182891,8.45770233,229.5,229.43,6.39770233]
[1733948183091,8.45770233,229.5,229.45,2.1767]
[1733948183288,2.06,229.5,229.46,2.80979674]
[1733948183585,2.06,229.5,229.43,3.9134]
[1733948183586,2.06,229.51,229.47,9.20749907]
[1733948183785,2.06,229.51,229.5,2.1762]
[1733948183987,2.06,229.51,229.5,4.98599674]
[1733948184589,8.45770233,229.51,229.5,2.80979674]
[1733948184785,8.45770233,229.51,229.43,3.9134]
[1733948184991,8.45770233,229.51,229.44,2.80779441]
[1733948185185,10.63380233,229.51,229.47,2.1764]
[1733948185391,6.39770233,229.49,229.43,3.9134]
[1733948185688,8.57400233,229.49,229.46,2.1765]
[1733948185896,6.39770233,229.49,229.47,2.80752365]
[1733948186092,6.39770233,229.49,229.46,2.1765]
[1733948186297,6.39770233,229.49,229.47,4.98420101]
[1733948186594,10.63390233,229.51,229.47,2.1765]
[1733948187293,6.39770233,229.53,229.46,6.39770233]
[1733948187593,6.39770233,229.53,229.47,2.80705422]
[1733948187594,8.45770233,229.53,229.47,2.80705422]
[1733948187788,8.45770233,229.53,229.48,2.80705422]
[1733948187998,8.45770233,229.53,229.46,6.39770233]
[1733948188296,2.176,229.52,229.47,2.80709623]
[1733948188595,6.39770233,229.51,229.48,2.80709623]
[1733948188799,6.39770233,229.51,229.47,2.1764]
[1733948189092,8.57380233,229.51,229.47,2.1764]
[1733948189593,8.57380233,229.51,229.48,2.1764]
[1733948190291,6.39770233,229.54,229.46,6.39770233]
[1733948190496,6.39770233,229.56,229.5,6.39770233]
[1733948190692,6.39770233,229.56,229.52,2.176]
[1733948190897,6.39770233,229.56,229.53,2.5350299]
[1733948191097,6.39770233,229.56,229.5,6.39770233]
[1733948191294,6.39770233,229.56,229.51,5.34024684]
[1733948191495,2.06,229.57,229.55,2.1757]
[1733948192393,2.06,229.57,229.56,2.1756]
[1733948193302,2.06,229.57,229.55,2.1757]
[1733948193804,2.06,229.57,229.51,3.8411]
[1733948193993,2.06,229.57,229.56,2.1756]
[1733948194202,2.06,229.57,229.51,3.8411]
[1733948194503,2.06,229.57,229.52,5.33792978]
[1733948194704,2.06,229.57,229.54,2.1757]
[1733948194904,2.06,229.57,229.55,2.53345766]
[1733948195202,2.06,229.57,229.51,3.8411]
[1733948195404,2.06,229.57,229.55,2.1756]
[1733948196905,6.39770233,229.56,229.54,2.1758]
[1733948197102,6.39770233,229.56,229.55,2.5349791]
[1733948197505,8.57330233,229.56,229.55,2.5349791]
[1733948197708,6.39770233,229.56,229.51,3.8411]
[1733948197906,6.39770233,229.54,229.52,2.53648847]
[1733948198107,6.39770233,229.54,229.53,2.53648847]
[1733948199203,6.39770233,229.54,229.46,6.39770233]
[1733948199407,6.39770233,229.54,229.47,5.3483665]
[1733948199608,6.39770233,229.54,229.46,6.39770233]
[1733948199609,8.57350233,229.54,229.51,2.1761]
[1733948199912,6.39770233,229.56,229.52,5.34816166]
[1733948200106,6.39770233,229.56,229.48,6.39770233]
[1733948200107,6.39770233,229.56,229.54,2.1757]
[1733948200307,5.2579325,229.61,229.5,6.39770233]
[1733948200512,6.39770233,229.62,229.55,6.39770233]
[1733948200711,8.45770233,229.62,229.56,2.53877708]
[1733948201012,6.39770233,229.62,229.57,2.53877708]
[1733948201207,6.39770233,229.64,229.58,5.34795607]
[1733948201408,2.06,229.63,229.59,5.34795607]
[1733948201616,2.06,229.63,229.6,2.53877708]
[1733948201914,2.06,229.63,229.56,3.9325]
[1733948201915,2.06,229.63,229.61,2.53877708]
[1733948202110,2.06,229.63,229.56,3.9325]
[1733948202309,2.06,229.63,229.57,5.34708609]
[1733948202512,2.06,229.63,229.58,5.34708609]
[1733948202812,2.06,229.63,229.6,2.1751]
[1733948203006,2.06,229.63,229.61,2.53777309]
[1733948203206,2.06,229.81,229.62,17.40343364]
[1733948203414,12.17389354,229.8,229.65,9.9980885]
[1733948203610,2.17589973,229.79,229.66,5.34534514]
[1733948203811,2.17589973,229.79,229.67,5.34534514]
[1733948204009,2.1735,229.78,229.73,2.174]
[1733948204205,2.1735,229.78,229.68,2.06]
[1733948204411,2.1735,229.78,229.69,5.33588648]
[1733948204612,2.17589973,229.79,229.7,5.33588648]
[1733948204909,9.9980885,229.77,229.71,2.53224669]
[1733948205116,9.9980885,229.77,229.67,2.06]
[1733948205315,9.9980885,229.77,229.68,5.33690852]
[1733948205615,9.9980885,229.77,229.69,2.53285791]
[1733948205810,9.9980885,229.77,229.67,2.06]
[1733948205811,9.9980885,229.77,229.7,2.53285791]
[1733948206012,9.9980885,229.77,229.67,2.06]
[1733948206311,9.9980885,229.77,229.68,5.33687095]
[1733948206511,9.9980885,229.77,229.69,2.53284198]
[1733948206713,9.9980885,229.77,229.65,2.06]
[1733948206911,9.9980885,229.77,229.66,5.33633702]
[1733948207111,2.1739,229.74,229.68,2.1745]
[1733948207313,2.1739,229.74,229.69,2.53263752]
[1733948207512,2.1739,229.74,229.68,2.1745]
[1733948207814,2.1739,229.74,229.69,2.53220479]
[1733948208114,2.1741,229.73,229.68,2.1745]
[1733948208313,2.1741,229.73,229.69,2.53209001]
[1733948208508,2.1739,229.74,229.69,2.1744]
[1733948209912,2.1741,229.73,229.68,2.1745]
[1733948210108,2.06,229.75,229.64,2.06]
[1733948210309,2.06,229.75,229.65,5.33726995]
[1733948210615,2.06,229.75,229.66,2.53307954]
[1733948210811,2.06,229.75,229.67,2.53307954]
[1733948211014,2.06,229.75,229.68,2.53313382]
[1733948211213,2.06,229.75,229.64,2.06]
[1733948211510,2.06,229.75,229.65,5.33728549]
[1733948211711,2.1741,229.73,229.68,2.1745]
[1733948212119,2.1741,229.72,229.67,2.1746]
[1733948212313,2.1741,229.72,229.68,2.53310128]
[1733948212616,2.1741,229.72,229.67,2.1746]
[1733948212818,2.1741,229.72,229.68,2.53311787]
[1733948213008,2.1741,229.72,229.67,2.1746]
[1733948213208,2.1741,229.72,229.68,2.53311922]
[1733948213407,2.1741,229.72,229.67,2.1746]
[1733948213610,2.1741,229.72,229.68,2.53270183]
[1733948213818,2.1741,229.72,229.67,2.1746]
[1733948214017,2.1742,229.71,229.68,2.53271401]
[1733948214313,2.1742,229.71,229.67,2.1746]
[1733948214815,2.1744,229.69,229.64,2.1748]
[1733948215019,9.9980885,229.74,229.64,2.1748]
[1733948215316,2.1746,229.68,229.65,2.53328243]
[1733948215518,2.1746,229.68,229.64,2.1748]
[1733948215814,2.1746,229.68,229.65,2.53301592]
[1733948216015,2.06,229.7,229.59,12.0580885]
[1733948216217,4.2344,229.7,229.65,2.1748]
[1733948216614,4.2344,229.7,229.66,2.532261]
[1733948216815,4.2344,229.7,229.65,2.1748]
[1733948217217,2.06,229.7,229.65,2.1748]
[1733948217521,2.1744,229.69,229.65,2.1748]
[1733948220621,2.06,229.7,229.65,2.1748]
[1733948220821,2.1745,229.68,229.65,2.1748]
[1733948221018,2.1745,229.68,229.64,2.1749]
[1733948221620,2.1744,229.69,229.65,2.1748]
[1733948221818,12.0078885,229.74,229.59,12.0580885]
[1733948222123,2.1742,229.71,229.68,2.1745]
[1733948223121,9.9980885,229.77,229.64,2.06]
[1733948223423,2.06,229.76,229.65,15.32935788]
[1733948223621,2.06,229.76,229.69,2.1744]
[1733948223917,1.9256,229.81,229.66,7.28606938]
[1733948223918,1.9256,229.81,229.68,9.9980885]
[1733948224117,2.06,229.8,229.69,5.32728101]
[1733948224317,2.1734,229.8,229.7,4.58851772]
[1733948224516,2.1734,229.8,229.71,5.32616663]
[1733948224712,7.27439896,229.81,229.72,5.3257587]
[1733948224920,2.1735,229.79,229.75,2.1737]
[1733948226424,2.1733,229.81,229.71,9.9980885]
[1733948226721,2.1733,229.81,229.72,5.32154397]
[1733948226919,9.9980885,229.86,229.76,2.1736]
[1733948227218,2.1734,229.8,229.76,2.1736]
[1733948229921,2.1736,229.77,229.73,2.174]
[1733948230125,2.1736,229.77,229.7,2.06]
[1733948230126,2.1736,229.77,229.74,2.52486275]
[1733948230325,2.1736,229.77,229.71,6.39423064]
[1733948230625,2.1736,229.77,229.72,5.32248315]
[1733948230823,2.1736,229.77,229.73,2.52614687]
[1733948231024,2.1736,229.77,229.74,2.52614687]
[1733948231221,2.1736,229.77,229.71,6.39423064]
[1733948231423,2.1736,229.77,229.72,5.32368601]
[1733948231630,2.1736,229.77,229.74,2.1739]
[1733948231927,2.1738,229.76,229.7,2.06]
[1733948232128,2.1738,229.76,229.71,11.71727577]
[1733948232427,2.1738,229.76,229.72,5.32304513]
[1733948232631,2.1738,229.76,229.73,2.52627348]
[1733948232822,2.1738,229.76,229.74,2.52627348]
[1733948233129,2.1738,229.76,229.73,2.174]
[1733948233426,2.1738,229.76,229.74,2.52749531]
[1733948233929,2.1738,229.76,229.75,2.52749531]
[1733948235427,8.56803064,229.76,229.75,2.52749531]
[1733948235923,6.39423064,229.76,229.69,6.39423064]
[1733948236125,6.39423064,229.74,229.7,5.33009579]
[1733948236329,6.39423064,229.74,229.71,2.52962625]
[1733948236528,2.1742,229.71,229.67,8.56873064]
[1733948236830,2.1742,229.71,229.68,5.33211583]
[1733948237018,2.06,229.75,229.64,2.06]
[1733948237019,8.56853064,229.7,229.69,5.33211583]
[1733948237223,8.56853064,229.7,229.6,39.43069655]
[1733948237224,6.39423064,229.7,229.61,6.39423064]
[1733948237433,6.39423064,229.7,229.62,5.3368915]
[1733948237434,6.39423064,229.68,229.62,5.3368915]
[1733948237728,2.1746,229.67,229.63,7.5117915]
[1733948237923,2.1746,229.67,229.64,5.3368915]
[1733948238132,6.39423064,229.66,229.65,5.3368915]
[1733948238332,8.56893064,229.66,229.65,5.3368915]
[1733948238630,6.39423064,229.68,229.65,5.3368915]
[1733948238827,6.39423064,229.68,229.66,2.53255132]
[1733948239131,2.1745,229.68,229.67,2.53255132]
[1733948239729,2.1746,229.67,229.63,2.1749]
[1733948240031,2.06,229.7,229.64,5.3410143]
[1733948240225,2.06,229.7,229.62,2.175]
[1733948240226,2.06,229.7,229.65,2.53490354]
[1733948240425,2.06,229.7,229.66,2.53490354]
[1733948240626,2.06,229.7,229.67,2.53490354]
[1733948240925,2.06,229.7,229.58,1.9043]
[1733948240926,2.1746,229.67,229.63,2.175]
[1733948241123,10.00336977,229.71,229.64,5.34334767]
[1733948241323,10.00336977,229.74,229.65,5.34334767]
[1733948241531,10.00336977,229.74,229.66,5.34334767]
[1733948241532,12.06336977,229.74,229.66,5.34334767]